[Event "Late-Titled-Tuesday-Blitz-April-23-2024"]
[Site "Chess.com"]
[Date "2024.04.23"]
[Round "10"]
[White "azikom"]
[Black "Eloist"]
[Result "1-0"]
[WhiteElo "2696"]
[BlackElo "2456"]
[TimeControl "180+1"]
[EndTime "15:58:30 PDT"]
[Termination "azikom won by resignation"]

1. c4 {[%clk 0:02:59.9]} 1... e5 {[%clk 0:02:56.8]} 2. Nc3 {[%clk 0:02:58.6]}
2... Nf6 {[%clk 0:02:56.3]} 3. e3 {[%clk 0:02:58.6]} 3... Nc6 {[%clk 0:02:53.5]}
4. Nf3 {[%clk 0:02:58.1]} 4... Bb4 {[%clk 0:02:52]} 5. Qc2 {[%clk 0:02:57.1]}
5... d6 {[%clk 0:02:51.7]} 6. d3 {[%clk 0:02:57.6]} 6... O-O {[%clk 0:02:49.6]}
7. Be2 {[%clk 0:02:58]} 7... Bf5 {[%clk 0:02:45.5]} 8. O-O {[%clk 0:02:58]} 8...
Bxc3 {[%clk 0:02:41.1]} 9. Qxc3 {[%clk 0:02:56.8]} 9... e4 {[%clk 0:02:40.5]}
10. dxe4 {[%clk 0:02:57]} 10... Nxe4 {[%clk 0:02:39.8]} 11. Qe1 {[%clk
0:02:54.7]} 11... a5 {[%clk 0:02:30.8]} 12. Nd2 {[%clk 0:02:49.6]} 12... Nc5
{[%clk 0:02:29.2]} 13. f3 {[%clk 0:02:45.9]} 13... Nb4 {[%clk 0:02:26.6]} 14.
Qg3 {[%clk 0:02:40.4]} 14... Nc2 {[%clk 0:02:22.7]} 15. e4 {[%clk 0:02:15.4]}
15... Nxa1 {[%clk 0:02:19.1]} 16. exf5 {[%clk 0:02:15.3]} 16... Qe7 {[%clk
0:02:03]} 17. Bd1 {[%clk 0:02:10.9]} 17... Qe3+ {[%clk 0:01:55.9]} 18. Kh1
{[%clk 0:02:09.5]} 18... Nd3 {[%clk 0:01:49.7]} 19. Nb3 {[%clk 0:01:40]} 19...
Nxc1 {[%clk 0:01:38.8]} 20. Nxa1 {[%clk 0:01:39.4]} 20... Rfe8 {[%clk 0:01:18]}
21. f6 {[%clk 0:01:36]} 21... g6 {[%clk 0:01:10.2]} 22. Qh4 {[%clk 0:01:29.1]}
22... Nd3 {[%clk 0:00:57.7]} 23. Nc2 {[%clk 0:01:25.7]} 23... Qd2 {[%clk
0:00:42.4]} 24. h3 {[%clk 0:01:20.3]} 24... Qf4 {[%clk 0:00:35.1]} 25. Qxf4
{[%clk 0:01:09.9]} 25... Nxf4 {[%clk 0:00:34.7]} 26. Nd4 {[%clk 0:01:10.5]}
26... c6 {[%clk 0:00:31.5]} 27. Bc2 {[%clk 0:01:00.6]} 27... Re5 {[%clk
0:00:29.3]} 28. Rd1 {[%clk 0:00:57.8]} 28... Rae8 {[%clk 0:00:28.1]} 29. Rd2
{[%clk 0:00:58.2]} 29... h5 {[%clk 0:00:23.4]} 30. h4 {[%clk 0:00:57.2]} 30...
d5 {[%clk 0:00:19.2]} 31. Bb3 {[%clk 0:00:48.9]} 31... a4 {[%clk 0:00:17.8]} 32.
Bxa4 {[%clk 0:00:48.5]} 32... dxc4 {[%clk 0:00:18.2]} 33. Kh2 {[%clk 0:00:39.3]}
33... Rd8 {[%clk 0:00:18.2]} 34. Nxc6 {[%clk 0:00:19.6]} 34... Rxd2 {[%clk
0:00:17.5]} 35. Nxe5 {[%clk 0:00:19.9]} 35... Rxg2+ {[%clk 0:00:17.7]} 36. Kh1
{[%clk 0:00:19.5]} 36... Rxb2 {[%clk 0:00:17.7]} 37. Nxc4 {[%clk 0:00:18.8]}
37... b5 {[%clk 0:00:18]} 38. Nxb2 {[%clk 0:00:18.3]} 38... bxa4 {[%clk
0:00:18.2]} 39. Nxa4 {[%clk 0:00:18.8]} 39... Nd5 {[%clk 0:00:18.2]} 40. Nc5
{[%clk 0:00:18.8]} 40... Kf8 {[%clk 0:00:17]} 41. a4 {[%clk 0:00:18]} 41... Ke8
{[%clk 0:00:16.8]} 42. Kg2 {[%clk 0:00:17.7]} 42... Kd8 {[%clk 0:00:16.5]} 43.
Ne4 {[%clk 0:00:16.5]} 43... Kc7 {[%clk 0:00:15.9]} 44. Kg3 {[%clk 0:00:16.3]}
44... Kb6 {[%clk 0:00:15.2]} 45. Ng5 {[%clk 0:00:16.6]} 45... Nxf6 {[%clk
0:00:14.7]} 46. Nxf7 {[%clk 0:00:16.4]} 46... Ng8 {[%clk 0:00:12.9]} 47. Ne5
{[%clk 0:00:15.5]} 47... Ne7 {[%clk 0:00:12.9]} 48. Kf4 {[%clk 0:00:15.6]} 48...
Ka5 {[%clk 0:00:13.1]} 49. Kg5 {[%clk 0:00:15.9]} 49... Kxa4 {[%clk 0:00:11]}
50. Nxg6 {[%clk 0:00:15.9]} 50... Nd5 {[%clk 0:00:10.2]} 51. Kxh5 {[%clk
0:00:15.4]} 51... Kb5 {[%clk 0:00:10.5]} 52. Kg5 {[%clk 0:00:15.6]} 52... Kc6
{[%clk 0:00:10.8]} 53. h5 {[%clk 0:00:16]} 53... Kd7 {[%clk 0:00:11]} 54. h6
{[%clk 0:00:15.4]} 54... Nc7 {[%clk 0:00:09.1]} 55. h7 {[%clk 0:00:14.8]} 55...
Ne6+ {[%clk 0:00:09.3]} 56. Kh6 {[%clk 0:00:15.1]} 1-0

[Event "Late-Titled-Tuesday-Blitz-April-23-2024"]
[Site "Chess.com"]
[Date "2024.04.23"]
[Round "10"]
[White "Jooonaaas1996"]
[Black "subham777"]
[Result "0-1"]
[WhiteElo "2441"]
[BlackElo "2549"]
[TimeControl "180+1"]
[EndTime "15:58:31 PDT"]
[Termination "subham777 won on time"]

1. e4 {[%clk 0:02:37]} 1... e6 {[%clk 0:02:58.9]} 2. d4 {[%clk 0:02:36.1]} 2...
d5 {[%clk 0:02:59.4]} 3. Bd3 {[%clk 0:02:31.8]} 3... dxe4 {[%clk 0:02:59]} 4.
Bxe4 {[%clk 0:02:32.1]} 4... Nf6 {[%clk 0:02:59.7]} 5. Bf3 {[%clk 0:02:32.4]}
5... c5 {[%clk 0:02:58.8]} 6. Ne2 {[%clk 0:02:32.3]} 6... Be7 {[%clk 0:02:58.5]}
7. O-O {[%clk 0:02:31.7]} 7... O-O {[%clk 0:02:58.3]} 8. dxc5 {[%clk 0:02:31.6]}
8... Bxc5 {[%clk 0:02:57.8]} 9. Nd2 {[%clk 0:02:26.6]} 9... Nc6 {[%clk
0:02:56.1]} 10. Ne4 {[%clk 0:02:24.7]} 10... Nxe4 {[%clk 0:02:54.2]} 11. Bxe4
{[%clk 0:02:25.6]} 11... Qe7 {[%clk 0:02:54.2]} 12. c3 {[%clk 0:02:25.1]} 12...
e5 {[%clk 0:02:47.7]} 13. b4 {[%clk 0:02:10.5]} 13... Bb6 {[%clk 0:02:46.6]} 14.
a4 {[%clk 0:01:57.3]} 14... f5 {[%clk 0:02:40.8]} 15. Bd5+ {[%clk 0:01:51]}
15... Be6 {[%clk 0:02:34.9]} 16. Qb3 {[%clk 0:01:42.1]} 16... Bxd5 {[%clk
0:02:22.5]} 17. Qxd5+ {[%clk 0:01:43]} 17... Kh8 {[%clk 0:02:21.7]} 18. b5
{[%clk 0:01:37.1]} 18... Rad8 {[%clk 0:02:17.3]} 19. Qc4 {[%clk 0:01:22.3]}
19... Na5 {[%clk 0:02:15]} 20. Qa2 {[%clk 0:01:21.5]} 20... Bc5 {[%clk
0:02:12.2]} 21. Ba3 {[%clk 0:01:17.4]} 21... Bxa3 {[%clk 0:02:09.1]} 22. Qxa3
{[%clk 0:01:18.3]} 22... Qxa3 {[%clk 0:02:08.8]} 23. Rxa3 {[%clk 0:01:19.2]}
23... Rd2 {[%clk 0:02:08.7]} 24. Ng3 {[%clk 0:01:18.5]} 24... g6 {[%clk
0:02:01.9]} 25. Re1 {[%clk 0:01:10.4]} 25... Rfd8 {[%clk 0:01:59.8]} 26. h4
{[%clk 0:00:56.4]} 26... Rc2 {[%clk 0:01:56.2]} 27. Raa1 {[%clk 0:00:49.3]}
27... Nc4 {[%clk 0:01:48.3]} 28. Rac1 {[%clk 0:00:47]} 28... Ra2 {[%clk
0:01:46.1]} 29. Nf1 {[%clk 0:00:42.3]} 29... Rxa4 {[%clk 0:01:39.7]} 30. h5
{[%clk 0:00:41.7]} 30... Kg7 {[%clk 0:01:38]} 31. Ne3 {[%clk 0:00:40.2]} 31...
Nxe3 {[%clk 0:01:34.2]} 32. Rxe3 {[%clk 0:00:41.1]} 32... e4 {[%clk 0:01:33.8]}
33. c4 {[%clk 0:00:40.3]} 33... Kf6 {[%clk 0:01:27.3]} 34. hxg6 {[%clk
0:00:40.2]} 34... hxg6 {[%clk 0:01:21.2]} 35. c5 {[%clk 0:00:40.8]} 35... Rc8
{[%clk 0:01:18.3]} 36. Rec3 {[%clk 0:00:38.9]} 36... Rb4 {[%clk 0:01:13.7]} 37.
c6 {[%clk 0:00:32.7]} 37... Rxb5 {[%clk 0:01:03.8]} 38. c7 {[%clk 0:00:28.3]}
38... a5 {[%clk 0:00:58.6]} 39. Rd1 {[%clk 0:00:20.5]} 39... Ke7 {[%clk
0:00:51.5]} 40. f3 {[%clk 0:00:20.8]} 40... exf3 {[%clk 0:00:35.6]} 41. gxf3
{[%clk 0:00:20.7]} 41... b6 {[%clk 0:00:32.5]} 42. Re1+ {[%clk 0:00:20.6]} 42...
Kd6 {[%clk 0:00:32.2]} 43. Rd1+ {[%clk 0:00:16.3]} 43... Rd5 {[%clk 0:00:28.8]}
44. Rb1 {[%clk 0:00:16.8]} 44... Rxc7 {[%clk 0:00:24.5]} 45. Rxb6+ {[%clk
0:00:16.3]} 45... Kd7 {[%clk 0:00:25]} 46. Rxc7+ {[%clk 0:00:16.5]} 46... Kxc7
{[%clk 0:00:25.7]} 47. Rxg6 {[%clk 0:00:16.9]} 47... Kb7 {[%clk 0:00:25.2]} 48.
Kg2 {[%clk 0:00:16]} 48... a4 {[%clk 0:00:25.5]} 49. Kg3 {[%clk 0:00:12.9]}
49... a3 {[%clk 0:00:25.6]} 50. Kf4 {[%clk 0:00:12.7]} 50... a2 {[%clk
0:00:23.7]} 51. Rg1 {[%clk 0:00:12.9]} 51... Ra5 {[%clk 0:00:23.4]} 52. Ra1
{[%clk 0:00:13.5]} 52... Kc6 {[%clk 0:00:23.3]} 53. Kg5 {[%clk 0:00:13.4]} 53...
Kd6 {[%clk 0:00:22.2]} 54. f4 {[%clk 0:00:13.7]} 54... Ke6 {[%clk 0:00:18.4]}
55. Re1+ {[%clk 0:00:13.2]} 55... Kd6 {[%clk 0:00:14.4]} 56. Ra1 {[%clk
0:00:14.1]} 56... Ke6 {[%clk 0:00:11.8]} 57. Re1+ {[%clk 0:00:14]} 57... Kf7
{[%clk 0:00:12.5]} 58. Ra1 {[%clk 0:00:14.3]} 58... Kg7 {[%clk 0:00:12.8]} 59.
Kh5 {[%clk 0:00:13.8]} 59... Kf6 {[%clk 0:00:12.9]} 60. Kh4 {[%clk 0:00:13.7]}
60... Ra3 {[%clk 0:00:12.8]} 0-1

[Event "Late-Titled-Tuesday-Blitz-April-23-2024"]
[Site "Chess.com"]
[Date "2024.04.23"]
[Round "10"]
[White "kai_nov"]
[Black "Licancabur"]
[Result "0-1"]
[WhiteElo "2283"]
[BlackElo "2474"]
[TimeControl "180+1"]
[EndTime "15:58:31 PDT"]
[Termination "Licancabur won on time"]

1. d4 {[%clk 0:03:00.9]} 1... d5 {[%clk 0:02:59.5]} 2. c4 {[%clk 0:03:00.5]}
2... dxc4 {[%clk 0:03:00.1]} 3. e4 {[%clk 0:03:00.3]} 3... Nc6 {[%clk
0:02:59.4]} 4. Nf3 {[%clk 0:02:56.3]} 4... Bg4 {[%clk 0:02:58.8]} 5. d5 {[%clk
0:02:44.3]} 5... Ne5 {[%clk 0:02:48.3]} 6. Bf4 {[%clk 0:02:38.9]} 6... Ng6
{[%clk 0:02:35]} 7. Bg3 {[%clk 0:02:32.3]} 7... e5 {[%clk 0:02:30.7]} 8. Bxc4
{[%clk 0:02:25.7]} 8... Bd6 {[%clk 0:02:19.6]} 9. Bb5+ {[%clk 0:02:17.6]} 9...
Bd7 {[%clk 0:02:16.2]} 10. Bxd7+ {[%clk 0:02:12.3]} 10... Qxd7 {[%clk
0:02:15.7]} 11. Nbd2 {[%clk 0:02:12.9]} 11... Nf6 {[%clk 0:02:07.7]} 12. O-O
{[%clk 0:02:12.2]} 12... O-O {[%clk 0:02:06.5]} 13. Qb3 {[%clk 0:02:08.8]} 13...
Rab8 {[%clk 0:01:56.5]} 14. Rac1 {[%clk 0:01:59.2]} 14... a6 {[%clk 0:01:54.8]}
15. Qd3 {[%clk 0:01:38.6]} 15... Nh5 {[%clk 0:01:53.1]} 16. Nc4 {[%clk
0:01:35.7]} 16... Nhf4 {[%clk 0:01:52.4]} 17. Qd2 {[%clk 0:01:31.6]} 17... Qg4
{[%clk 0:01:47.1]} 18. Nxd6 {[%clk 0:00:59]} 18... cxd6 {[%clk 0:01:45.8]} 19.
Rc3 {[%clk 0:00:56.8]} 19... f5 {[%clk 0:01:25.5]} 20. exf5 {[%clk 0:00:51.1]}
20... Rxf5 {[%clk 0:01:25.1]} 21. Rfc1 {[%clk 0:00:50.4]} 21... Rbf8 {[%clk
0:01:23.8]} 22. Rc8 {[%clk 0:00:47.1]} 22... Nxg2 {[%clk 0:01:20]} 23. Rxf8+
{[%clk 0:00:45.7]} 23... Rxf8 {[%clk 0:01:19.5]} 24. Ng5 {[%clk 0:00:33]} 24...
N2f4 {[%clk 0:01:12.2]} 25. Ne6 {[%clk 0:00:22.2]} 25... Nxe6 {[%clk 0:01:10.6]}
26. dxe6 {[%clk 0:00:23.1]} 26... Qxe6 {[%clk 0:01:10.5]} 27. Rc7 {[%clk
0:00:23]} 27... Qxa2 {[%clk 0:00:59]} 28. Qxd6 {[%clk 0:00:20.6]} 28... Qb1+
{[%clk 0:00:57.4]} 29. Kg2 {[%clk 0:00:20]} 29... Qe4+ {[%clk 0:00:57.9]} 30.
Kg1 {[%clk 0:00:18.1]} 30... a5 {[%clk 0:00:18.3]} 31. Qe6+ {[%clk 0:00:15.4]}
31... Kh8 {[%clk 0:00:17.4]} 32. Qd7 {[%clk 0:00:14.8]} 32... Rg8 {[%clk
0:00:16.3]} 33. Rc8 {[%clk 0:00:14.3]} 33... Qe1+ {[%clk 0:00:15.6]} 34. Kg2
{[%clk 0:00:14.2]} 34... Qe4+ {[%clk 0:00:16.3]} 35. Kg1 {[%clk 0:00:14.4]}
35... h5 {[%clk 0:00:15]} 36. Rxg8+ {[%clk 0:00:13.6]} 36... Kxg8 {[%clk
0:00:14.8]} 37. Qd8+ {[%clk 0:00:11.3]} 37... Kh7 {[%clk 0:00:14.8]} 38. Qxa5
{[%clk 0:00:11.5]} 38... h4 {[%clk 0:00:14.7]} 39. f3 {[%clk 0:00:07.9]} 39...
Qb1+ {[%clk 0:00:12.1]} 40. Kg2 {[%clk 0:00:08.3]} 40... hxg3 {[%clk 0:00:12.5]}
41. hxg3 {[%clk 0:00:08.3]} 41... Qxb2+ {[%clk 0:00:12.8]} 42. Kh3 {[%clk
0:00:08.8]} 42... Qc2 {[%clk 0:00:11.5]} 43. Qd5 {[%clk 0:00:07.5]} 43... Qf5+
{[%clk 0:00:11.4]} 44. Kg2 {[%clk 0:00:06.2]} 44... b6 {[%clk 0:00:09.4]} 45.
Qb3 {[%clk 0:00:05]} 45... Qf6 {[%clk 0:00:08.5]} 46. Qd3 {[%clk 0:00:04.1]}
46... Qe6 {[%clk 0:00:06.9]} 47. g4 {[%clk 0:00:03.2]} 47... Qc6 {[%clk
0:00:05]} 48. Kg3 {[%clk 0:00:03.3]} 48... Qc5 {[%clk 0:00:04.7]} 49. g5 {[%clk
0:00:02.8]} 49... Qg1+ {[%clk 0:00:05.1]} 50. Kh3 {[%clk 0:00:02.3]} 50... Qh1+
{[%clk 0:00:05]} 51. Kg4 {[%clk 0:00:02]} 51... Qg2+ {[%clk 0:00:04.7]} 52. Kf5
{[%clk 0:00:01.4]} 52... Qh3+ {[%clk 0:00:04.5]} 0-1

[Event "Late-Titled-Tuesday-Blitz-April-23-2024"]
[Site "Chess.com"]
[Date "2024.04.23"]
[Round "10"]
[White "Slovak_fighter2000"]
[Black "xasid81"]
[Result "0-1"]
[WhiteElo "2543"]
[BlackElo "2673"]
[TimeControl "180+1"]
[EndTime "15:58:44 PDT"]
[Termination "xasid81 won on time"]

1. d4 {[%clk 0:03:00.9]} 1... g6 {[%clk 0:03:00.9]} 2. e4 {[%clk 0:03:00.3]}
2... Bg7 {[%clk 0:03:01.8]} 3. Nf3 {[%clk 0:03:00.5]} 3... a6 {[%clk 0:03:01.7]}
4. Bc4 {[%clk 0:02:59.7]} 4... b5 {[%clk 0:03:02.3]} 5. Bb3 {[%clk 0:03:00.1]}
5... Bb7 {[%clk 0:03:02.6]} 6. Qe2 {[%clk 0:03:00.1]} 6... e6 {[%clk 0:03:02.9]}
7. c3 {[%clk 0:02:59.9]} 7... Ne7 {[%clk 0:03:02.9]} 8. Bf4 {[%clk 0:02:58.5]}
8... O-O {[%clk 0:03:03.1]} 9. Nbd2 {[%clk 0:02:57.9]} 9... d6 {[%clk
0:03:03.4]} 10. h3 {[%clk 0:02:54.5]} 10... Nd7 {[%clk 0:03:03.6]} 11. O-O
{[%clk 0:02:54.2]} 11... Re8 {[%clk 0:03:03.3]} 12. a4 {[%clk 0:02:53.6]} 12...
bxa4 {[%clk 0:03:00.3]} 13. Rxa4 {[%clk 0:02:49.9]} 13... Nb6 {[%clk 0:03:01.2]}
14. Raa1 {[%clk 0:02:49.5]} 14... d5 {[%clk 0:02:58.5]} 15. Bc2 {[%clk
0:02:45.1]} 15... a5 {[%clk 0:02:55.3]} 16. Ne5 {[%clk 0:02:37.3]} 16... a4
{[%clk 0:02:52.6]} 17. Ra2 {[%clk 0:02:25.4]} 17... Ba6 {[%clk 0:02:51.9]} 18.
Bd3 {[%clk 0:02:24.8]} 18... Bxd3 {[%clk 0:02:50.9]} 19. Qxd3 {[%clk 0:02:23.8]}
19... dxe4 {[%clk 0:02:50.7]} 20. Nxe4 {[%clk 0:02:21.5]} 20... Ned5 {[%clk
0:02:51.1]} 21. Bg3 {[%clk 0:02:20.5]} 21... f5 {[%clk 0:02:44.4]} 22. Nc5
{[%clk 0:02:14.7]} 22... f4 {[%clk 0:02:44.3]} 23. Bh2 {[%clk 0:02:14.4]} 23...
Bxe5 {[%clk 0:02:40.7]} 24. dxe5 {[%clk 0:02:12.5]} 24... Nd7 {[%clk 0:02:41.3]}
25. Nxe6 {[%clk 0:02:04.7]} 25... Qe7 {[%clk 0:02:26.8]} 26. Qxd5 {[%clk
0:01:57.5]} 26... Qxe6 {[%clk 0:02:26.5]} 27. Qxe6+ {[%clk 0:01:57.7]} 27...
Rxe6 {[%clk 0:02:27.4]} 28. Bxf4 {[%clk 0:01:57.6]} 28... Nxe5 {[%clk
0:02:18.8]} 29. Bxe5 {[%clk 0:01:52.1]} 29... Rxe5 {[%clk 0:02:18.5]} 30. Rfa1
{[%clk 0:01:51.6]} 30... Re2 {[%clk 0:02:12.2]} 31. b4 {[%clk 0:01:30.8]} 31...
Rxa2 {[%clk 0:01:59.9]} 32. Rxa2 {[%clk 0:01:30.1]} 32... Kf7 {[%clk 0:02:00.8]}
33. Kf1 {[%clk 0:01:27.6]} 33... Ke6 {[%clk 0:02:01.4]} 34. Ke2 {[%clk
0:01:28.1]} 34... Kd5 {[%clk 0:02:01.9]} 35. Kd3 {[%clk 0:01:28.7]} 35... g5
{[%clk 0:01:59.8]} 36. c4+ {[%clk 0:01:25.5]} 36... Ke5 {[%clk 0:02:00]} 37. Kc3
{[%clk 0:01:22.5]} 37... Ke4 {[%clk 0:01:56]} 38. b5 {[%clk 0:01:22.1]} 38... a3
{[%clk 0:01:50.3]} 39. Kb4 {[%clk 0:01:21.7]} 39... Kd4 {[%clk 0:01:46.1]} 40.
Rxa3 {[%clk 0:01:20.2]} 40... c5+ {[%clk 0:01:05.1]} 41. Kb3 {[%clk 0:00:56.8]}
41... Rf8 {[%clk 0:01:01.2]} 42. Ra2 {[%clk 0:00:55.8]} 42... Kd3 {[%clk
0:00:55.9]} 43. Ra7 {[%clk 0:00:45.5]} 43... Rxf2 {[%clk 0:00:53.1]} 44. Rd7+
{[%clk 0:00:45.9]} 44... Ke4 {[%clk 0:00:53.4]} 45. Rxh7 {[%clk 0:00:41.8]}
45... Rxg2 {[%clk 0:00:53.5]} 46. b6 {[%clk 0:00:40.3]} 46... Rg1 {[%clk
0:00:51]} 47. Ka4 {[%clk 0:00:32.5]} 47... Rb1 {[%clk 0:00:50.1]} 48. Ka5 {[%clk
0:00:27.4]} 48... Kd4 {[%clk 0:00:48.1]} 49. Ka6 {[%clk 0:00:26]} 49... Kxc4
{[%clk 0:00:41]} 50. Kb7 {[%clk 0:00:24]} 50... Kd3 {[%clk 0:00:29.7]} 51. Rd7+
{[%clk 0:00:22.7]} 51... Ke4 {[%clk 0:00:28.2]} 52. Rc7 {[%clk 0:00:18.7]} 52...
Kd4 {[%clk 0:00:23.3]} 53. Rc6 {[%clk 0:00:19.1]} 53... c4 {[%clk 0:00:20.6]}
54. Kc7 {[%clk 0:00:17.9]} 54... c3 {[%clk 0:00:20.9]} 55. b7 {[%clk 0:00:18.3]}
55... Kd3 {[%clk 0:00:16.8]} 56. Rb6 {[%clk 0:00:09.6]} 56... c2 {[%clk
0:00:10]} 57. Rd6+ {[%clk 0:00:04.7]} 57... Ke3 {[%clk 0:00:08.3]} 58. Re6+
{[%clk 0:00:02.5]} 58... Kf3 {[%clk 0:00:08.4]} 59. Rb6 {[%clk 0:00:01.6]} 59...
c1=Q+ {[%clk 0:00:07.8]} 60. Rc6 {[%clk 0:00:02]} 60... Rxb7+ {[%clk 0:00:06.8]}
61. Kxb7 {[%clk 0:00:01.9]} 61... Qf4 {[%clk 0:00:07.5]} 62. Rc3+ {[%clk
0:00:01.2]} 62... Kg2 {[%clk 0:00:07.7]} 0-1

[Event "Late-Titled-Tuesday-Blitz-April-23-2024"]
[Site "Chess.com"]
[Date "2024.04.23"]
[Round "10"]
[White "m_ezat"]
[Black "kylelancman"]
[Result "0-1"]
[WhiteElo "2604"]
[BlackElo "2497"]
[TimeControl "180+1"]
[EndTime "15:58:45 PDT"]
[Termination "kylelancman won by resignation"]

1. d4 {[%clk 0:03:00.9]} 1... d5 {[%clk 0:02:59.9]} 2. c4 {[%clk 0:02:57.9]}
2... e6 {[%clk 0:03:00]} 3. Nc3 {[%clk 0:02:58.1]} 3... Nf6 {[%clk 0:03:00]} 4.
cxd5 {[%clk 0:02:58]} 4... Nxd5 {[%clk 0:03:00.9]} 5. e4 {[%clk 0:02:57.1]} 5...
Nxc3 {[%clk 0:03:00.3]} 6. bxc3 {[%clk 0:02:58]} 6... c5 {[%clk 0:03:00.9]} 7.
a3 {[%clk 0:02:58.4]} 7... cxd4 {[%clk 0:03:00.1]} 8. cxd4 {[%clk 0:02:59.3]}
8... e5 {[%clk 0:03:00.6]} 9. d5 {[%clk 0:02:58.3]} 9... Bc5 {[%clk 0:02:54.2]}
10. Nf3 {[%clk 0:02:52.5]} 10... Bg4 {[%clk 0:02:48.4]} 11. Qa4+ {[%clk
0:02:50.9]} 11... Nd7 {[%clk 0:02:48]} 12. Nxe5 {[%clk 0:02:46.2]} 12... Qf6
{[%clk 0:02:29.9]} 13. f4 {[%clk 0:02:15.2]} 13... O-O {[%clk 0:02:26.8]} 14.
Bb2 {[%clk 0:01:39.4]} 14... Qb6 {[%clk 0:02:00.8]} 15. Nd3 {[%clk 0:01:25.7]}
15... Bf2+ {[%clk 0:01:44.3]} 16. Nxf2 {[%clk 0:01:21]} 16... Qxb2 {[%clk
0:01:44]} 17. Nxg4 {[%clk 0:01:12.9]} 17... Qxa1+ {[%clk 0:01:40.9]} 18. Kf2
{[%clk 0:01:13.1]} 18... Nc5 {[%clk 0:01:32.5]} 19. Qc4 {[%clk 0:01:12.4]} 19...
Qxa3 {[%clk 0:01:23.7]} 20. Be2 {[%clk 0:01:05.4]} 20... Rac8 {[%clk 0:01:18.1]}
21. Qd4 {[%clk 0:01:04.4]} 21... Qa4 {[%clk 0:01:08.8]} 22. Qxa4 {[%clk
0:01:00.5]} 22... Nxa4 {[%clk 0:01:08.6]} 23. Ra1 {[%clk 0:01:00.5]} 23... Nc5
{[%clk 0:01:08]} 24. e5 {[%clk 0:00:59.1]} 24... Ra8 {[%clk 0:01:01.4]} 25. d6
{[%clk 0:00:55.8]} 25... a5 {[%clk 0:01:00.9]} 26. Bb5 {[%clk 0:00:52]} 26... a4
{[%clk 0:01:00.3]} 27. Ra3 {[%clk 0:00:51.1]} 27... Ra5 {[%clk 0:00:59.6]} 28.
Be2 {[%clk 0:00:50.3]} 28... b5 {[%clk 0:00:58.2]} 29. Ne3 {[%clk 0:00:46.3]}
29... b4 {[%clk 0:00:57.5]} 30. Ra1 {[%clk 0:00:44.4]} 30... a3 {[%clk
0:00:53.4]} 31. Nc4 {[%clk 0:00:44.2]} 31... Ra7 {[%clk 0:00:51.8]} 32. Rc1
{[%clk 0:00:39.2]} 32... a2 {[%clk 0:00:45.6]} 33. Ke3 {[%clk 0:00:29.4]} 33...
a1=Q {[%clk 0:00:44.6]} 34. Rxa1 {[%clk 0:00:30.1]} 34... Rxa1 {[%clk
0:00:43.9]} 35. Kd4 {[%clk 0:00:31]} 35... Ne6+ {[%clk 0:00:40.6]} 36. Ke4
{[%clk 0:00:29.2]} 36... b3 {[%clk 0:00:40]} 37. f5 {[%clk 0:00:29.4]} 37...
Nc5+ {[%clk 0:00:36.9]} 38. Kd5 {[%clk 0:00:27.4]} 38... Na4 {[%clk 0:00:35.8]}
39. e6 {[%clk 0:00:26.1]} 39... fxe6+ {[%clk 0:00:30.5]} 40. fxe6 {[%clk
0:00:25.8]} 40... Nc3+ {[%clk 0:00:30]} 41. Kc6 {[%clk 0:00:24.2]} 41... Nxe2
{[%clk 0:00:25.3]} 42. e7 {[%clk 0:00:24.2]} 42... Nd4+ {[%clk 0:00:22.3]} 43.
Kd5 {[%clk 0:00:22.6]} 43... Rd1 {[%clk 0:00:14.6]} 44. Nb2 {[%clk 0:00:13.3]}
44... Rd2 {[%clk 0:00:11.7]} 45. Nc4 {[%clk 0:00:12.2]} 45... Rd3 {[%clk
0:00:08.1]} 46. Nb2 {[%clk 0:00:12]} 46... Rd2 {[%clk 0:00:08.1]} 47. Nc4 {[%clk
0:00:12.1]} 47... Rf5+ {[%clk 0:00:07.8]} 48. Ke4 {[%clk 0:00:11.4]} 48... Re2+
{[%clk 0:00:07.4]} 49. Kxd4 {[%clk 0:00:11]} 49... Rf8 {[%clk 0:00:07]} 50. Kd3
{[%clk 0:00:04.9]} 50... b2 {[%clk 0:00:05.8]} 51. Nxb2 {[%clk 0:00:03.7]} 51...
Rxb2 {[%clk 0:00:06.3]} 52. d7 {[%clk 0:00:04.6]} 52... Rbb8 {[%clk 0:00:06.2]}
53. Kd4 {[%clk 0:00:05]} 53... Rfd8 {[%clk 0:00:05.2]} 54. exd8=Q+ {[%clk
0:00:03.4]} 54... Rxd8 {[%clk 0:00:05.9]} 55. Ke5 {[%clk 0:00:04.2]} 55... Rxd7
{[%clk 0:00:06.6]} 56. Ke6 {[%clk 0:00:05.1]} 56... Rd2 {[%clk 0:00:07]} 57. g4
{[%clk 0:00:04.7]} 57... Rxh2 {[%clk 0:00:07.1]} 58. g5 {[%clk 0:00:05.6]} 58...
Rf2 {[%clk 0:00:07.2]} 59. g6 {[%clk 0:00:06.5]} 59... hxg6 {[%clk 0:00:07.3]}
60. Ke7 {[%clk 0:00:07.4]} 60... g5 {[%clk 0:00:07.8]} 61. Ke6 {[%clk 0:00:08]}
61... Rf6+ {[%clk 0:00:08.7]} 62. Ke5 {[%clk 0:00:08.9]} 62... g4 {[%clk
0:00:09.6]} 63. Ke4 {[%clk 0:00:09.7]} 63... g3 {[%clk 0:00:10.5]} 64. Ke3
{[%clk 0:00:10.5]} 64... g2 {[%clk 0:00:11.3]} 65. Ke2 {[%clk 0:00:11.4]} 65...
g1=Q {[%clk 0:00:12]} 66. Kd3 {[%clk 0:00:11.8]} 66... Qg5 {[%clk 0:00:11.1]}
67. Ke4 {[%clk 0:00:12.7]} 67... Qf5+ {[%clk 0:00:10.4]} 68. Ke3 {[%clk
0:00:13.6]} 68... Re6+ {[%clk 0:00:10.5]} 69. Kd4 {[%clk 0:00:13.5]} 69... Qf7
{[%clk 0:00:11.2]} 70. Kc5 {[%clk 0:00:13.4]} 70... Qd7 {[%clk 0:00:11.5]} 0-1